Cogmind - Beta 10.2 *** ADVENTURER MODE // 2021.06.12 @ 15:04:53 Player: Dawn Result: Self-destructed Performance ------------- Evolutions (5) 2500 Regions Visited (14) 2800 Robots Destroyed (148) 740 Value Destroyed (5249) 5249 Prototype IDs (21) 420 Alien Tech Used (0) 0 Bonus (1402) 1402 TOTAL SCORE: 13111 Bonus ------- High Alert Combat Kills 265 Follower Combat Kills 137 Met Warlord at Base 500 MAIN.C Attacked Warlord 500 Cogmind --------- Core Integrity 752/1000 Matter 295/300 Energy 170/170 System Corruption 0% Temperature Cool (18) Movement Core (500) Ox9 Location -5/Warlord Parts ------- > --- POWER (2) -------- Micro Fission Core > --- PROPULSION (3) --- (None) > --- UTILITY (10) ----- Experimental Heat Sink Improved Cooling System Enhanced Optical Array Advanced Targeting Computer Hardened Heavy Armor Plating Improved Focal Shield Advanced Hacking Suite > --- WEAPON (2) ------- (None) > --- INVENTORY (4) ---- Advanced Target Analyzer Advanced Plasma Cannon Advanced Plasma Cannon Vortex Driver Peak State ------------ > --- POWER ------------ Micro Fission Core Micro Fission Core > --- PROPULSION ------- Gravmag Array Linear Gravjet > --- UTILITY ---------- Experimental Heat Sink Improved Cooling System Advanced Cooling System Enhanced Optical Array 0b10 Decoder Chip [Scout] Advanced Targeting Computer Reaction Control System Improved Focal Shield Advanced Shield Generator Advanced Hacking Suite > --- WEAPON ----------- Vortex Catalyst Activator > --- INVENTORY -------- Advanced Target Analyzer Advanced Plasma Cannon Advanced Plasma Cannon Vortex Driver [Rating: 102] Favorites ----------- Power Micro Fission Core Engine Cooled Ion Engine Power Core Micro Fission Core Propulsion Armored Wheel Treads Light Treads Leg Improved Carbon-fiber Leg Wheel Armored Wheel Hover Unit Gravmag Array Flight Unit Cesium-ion Thruster Utility Improved Heat Sink Device Improved Heat Sink Storage High-capacity Storage Unit Processor Advanced Targeting Computer Hackware Advanced Hacking Suite Protection Light Armor Plating Weapon Assault Rifle Energy Gun Heavy EM Pulse Gun Energy Cannon Advanced Plasma Cannon Ballistic Gun Assault Rifle Ballistic Cannon Mini Assault Cannon Launcher Precision Grenade Launcher Impact Weapon Powered Hammer Build | -11 -10 -9 -8 -7 -7 -6 -6 -6 -5 -5 -5 -5 -5 -5 ------- Run | Scr Mat Mat Mat Fac Sto Fac Was Fac Fac Was Fac Upp Upp War Slots Evolved 10 | . . 2 2 2 . 2 . . 2 . . . . . Power 1 | . . . . . . 1 . . . . . . . . Propulsion 1 | . . . . 1 . . . . . . . . . . Utility 8 | . . 2 2 1 . 1 . . 2 . . . . . Weapon . | . . . . . . . . . . . . . . . Parts Attached 144 | 6 8 15 21 6 34 13 5 2 13 . 10 4 . 7 Power 17 | 1 . 3 1 2 3 2 . . 2 . 3 . . . Engine 9 | 1 . 2 . 1 3 2 . . . . . . . . Core 8 | . . 1 1 1 . . . . 2 . 3 . . . Reactor . | . . . . . . . . . . . . . . . Propulsion 26 | 2 4 2 . 2 8 4 1 1 1 . . 1 . . Treads 9 | 2 2 . . . 3 2 . . . . . . . . Leg 6 | . . . . . 5 1 . . . . . . . . Wheel 6 | . 2 2 . 2 . . . . . . . . . . Hover 3 | . . . . . . . . 1 1 . . 1 . . Flight 2 | . . . . . . 1 1 . . . . . . . Utility 50 | 1 4 6 11 2 5 4 . 1 8 . 3 3 . 2 Device 26 | . 2 2 6 2 2 2 . 1 4 . 2 2 . 1 Storage 4 | 1 2 1 . . . . . . . . . . . . Processor 5 | . . 1 1 . . . . . 2 . . 1 . . Hackware 2 | . . . . . . . . . 1 . 1 . . . Protection 13 | . . 2 4 . 3 2 . . 1 . . . . 1 Artifact . | . . . . . . . . . . . . . . . Weapon 51 | 2 . 4 9 . 18 3 4 . 2 . 4 . . 5 Energy Gun 7 | . . 1 3 . . . 1 . . . 2 . . . Energy Cannon 18 | . . 2 3 . 3 2 2 . . . 2 . . 4 Ballistic Gun 5 | 2 . 1 1 . . . 1 . . . . . . . Ballistic Cannon 6 | . . . . . 3 1 . . 2 . . . . . Launcher 9 | . . . 2 . 6 . . . . . . . . 1 Special Weapon . | . . . . . . . . . . . . . . . Impact Weapon 6 | . . . . . 6 . . . . . . . . . Slashing Weapon . | . . . . . . . . . . . . . . . Piercing Weapon . | . . . . . . . . . . . . . . . Special Melee Weapon . | . . . . . . . . . . . . . . . Unidentified Prototypes 12 | . . 3 . 1 3 1 . . . . 1 . . 3 Parts Lost 28 | . . 3 5 1 4 2 6 2 . . . 1 . 4 Power 1 | . . . . . 1 . . . . . . . . . Propulsion 7 | . . . . 1 1 1 1 1 . . . . . 2 Utility 15 | . . 1 4 . 2 1 3 1 . . . 1 . 2 Weapon 5 | . . 2 1 . . . 2 . . . . . . . Highest Loss Streak 6 | . . 2 2 1 2 1 6 2 . . . 1 . 2 Average Slot Usage (%) 92 | . 95 99 96 94 91 98 60 28 68 94 93 92 94 89 Engine 6 | . 14 9 8 . 6 12 6 . . . . . . . Core 3 | . . 1 . 6 . . . . 7 11 11 11 11 10 Treads 4 | . 26 . . . . 3 6 . . . . . . . Leg 1 | . . . . . 10 15 3 . . . . . . . Wheel 8 | . 1 22 18 17 6 . . . . . . . . . Hover 3 | . . . . . . . . . 10 11 11 11 11 10 Device 23 | . 10 14 24 29 28 25 20 15 22 29 32 35 35 34 Storage 6 | . 14 11 9 7 7 6 3 . . . . . . . Processor 8 | . . 10 4 7 7 6 6 6 11 17 12 13 17 15 Hackware 1 | . . . . . . . . . . 5 9 7 5 5 Protection 5 | . . 7 12 7 6 12 5 . 4 5 1 . . . Energy Gun 1 | . . 4 4 . . . . . . . . . . . Energy Cannon 6 | . . 4 7 15 3 10 5 . . . 8 11 11 9 Ballistic Gun 7 | . 28 12 4 . . . . . . . . . . . Ballistic Cannon 1 | . . . . . 6 . . . 9 11 1 . . . Naked Turns . | . . . . . . . . . . . . . . . Heaviest Build 75 | 13 26 64 56 54 62 75 72 4 42 42 42 41 41 42 Greatest Support 84 | 40 40 24 24 36 84 56 56 28 44 44 44 44 40 40 Greatest Overweight (x) 9 | 1 2 2 2 2 4 2 1 . . . . 1 1 9 Average Overweight (x) . | . . 1 1 1 1 1 . . . . . . 1 . Largest Inventory Capacity 18 | 6 10 18 12 12 12 12 12 4 4 4 4 4 4 4 Average Capacity 8 | 5 7 11 12 12 12 12 8 4 4 4 4 4 4 4 Most Carried 12 | 5 10 12 12 12 12 12 12 4 4 4 4 4 4 4 Average Carried 8 | 2 6 10 11 11 11 11 8 4 3 4 3 3 4 3 Final Capacity 12 | 6 10 12 12 12 12 12 4 4 4 4 4 4 4 4 Final Carried 12 | 4 10 12 12 12 11 12 4 4 4 4 4 4 4 4 Class Distribution -------------------- 74% | Mutant 18% | Hacker-Mutant 5% | Commander-Mutant Dominant Class ---------------- Mutant | -10/Materials Mutant | -9/Materials Mutant | -8/Materials Mutant | -7/Factory Mutant | -7/Storage Mutant | -6/Factory Mutant | -6/Waste Mutant | -6/Factory Mutant | -5/Factory Hacker-Mutant | -5/Waste Hacker-Mutant | -5/Factory Hacker-Mutant | -5/Upper Caves Hacker-Mutant | -5/Upper Caves Commander-Mutant | -5/Warlord Resources | -11 -10 -9 -8 -7 -7 -6 -6 -6 -5 -5 -5 -5 -5 -5 ----------- Run | Scr Mat Mat Mat Fac Sto Fac Was Fac Fac Was Fac Upp Upp War Matter Collected 2904 | 232 276 398 377 55 503 315 . . 300 . 284 55 17 92 Remotely . | . . . . . . . . . . . . . . . Salvage Created 5781 | . 351 1340 1559 168 1153 442 . . 99 . 196 473 . . Parts 297 | . 27 77 83 6 54 16 . . 8 . 8 18 . . Haulers Intercepted 9 | . 2 5 1 1 . . . . . . . . . . Recyclers Shooed 1 | . . . 1 . . . . . . . . . . . Parts Field Recycled . | . . . . . . . . . . . . . . . Retrieved Matter . | . . . . . . . . . . . . . . . Parts Self-Destructed 72 | . . . . . . . . . . . . 17 . 55 Prevented 1 | . . . . . . . . . . . . . . 1 Kills | -11 -10 -9 -8 -7 -7 -6 -6 -6 -5 -5 -5 -5 -5 -5 ------- Run | Scr Mat Mat Mat Fac Sto Fac Was Fac Fac Was Fac Upp Upp War Combat Hostiles Destroyed 122 | . 7 24 32 3 30 7 . . 7 . 2 10 . . Guns 33 | . 7 18 8 . . . . . . . . . . . Cannons 63 | . . 6 15 2 14 7 . . 7 . 2 10 . . AOE 25 | . . . 9 . 16 . . . . . . . . . Classes Destroyed 13 | . 4 3 2 . 3 . . . . . . 1 . . Worker 1 | . . . . . 1 . . . . . . . . . Builder 7 | . 1 . 4 . 2 . . . . . . . . . Hauler 9 | . 2 5 1 1 . . . . . . . . . . Recycler 3 | . . 1 1 . 1 . . . . . . . . . Watcher 6 | . . 2 1 . 1 . . . . . 2 . . . Swarmer 29 | . 3 8 4 1 4 . . . 5 . . 4 . . Grunt 57 | . 4 8 21 2 16 5 . . . . . 1 . . Brawler 4 | . . . 3 . . 1 . . . . . . . . Duelist 3 | . . . . . 1 . . . . . . 2 . . Sentry 22 | . . 8 3 . 7 1 . . . . 2 1 . . Hunter 2 | . . . 1 . 1 . . . . . . . . . Programmer 3 | . . . . . 1 . . . 2 . . . . . Thug 1 | . . . . . . . . . . . . 1 . . Mutant 1 | . . . . . . . . . . . . 1 . . Best Kill Streak 16 | . 3 4 9 2 16 4 . . 5 . 2 4 . . Combat Bots Only 14 | . 3 4 9 2 14 4 . . 5 . 1 4 . . Max Kills in Single Turn 5 | . 2 1 4 1 5 1 . . 1 . 1 1 . . Gunslinging . | . . . . . . . . . . . . . . . Exploded 4 | . . . 3 . 4 . . . . . . . . . Melee . | . . . . . . . . . . . . . . . Uniques/NPCs Destroyed . | . . . . . . . . . . . . . . . Combat | -11 -10 -9 -8 -7 -7 -6 -6 -6 -5 -5 -5 -5 -5 -5 -------- Run | Scr Mat Mat Mat Fac Sto Fac Was Fac Fac Was Fac Upp Upp War Damage Taken 5180 | . 138 776 1078 163 1041 231 185 93 501 . 37 270 . 667 Core 824 | . 29 118 161 24 141 36 35 32 125 . . 54 . 69 Absorbed by Shields 362 | . . . . . . . . . 107 . 14 107 . 134 Core Remaining (%) 81 | 100 88 70 70 . 76 . . 87 . . . . . . Volleys Fired 335 | . 28 75 74 13 53 23 10 . 14 . 14 25 . 6 Largest 2 | . 2 2 2 2 2 2 2 . 2 . 2 2 . 2 Hottest 196 | . 40 113 136 136 116 136 137 . 105 . 196 196 . 196 Shots Fired 630 | . 56 150 142 26 95 36 19 . 28 . 24 45 . 9 Gun 263 | . 56 132 73 . . . 2 . . . . . . . Cannon 353 | . . 18 64 26 86 36 17 . 28 . 24 45 . 9 Launcher 14 | . . . 5 . 9 . . . . . . . . . Special . | . . . . . . . . . . . . . . . Kinetic 254 | . 56 86 36 . 44 . . . 28 . 4 . . . Thermal 288 | . . 18 73 26 42 36 19 . . . 20 45 . 9 Explosive 14 | . . . 5 . 9 . . . . . . . . . Electromagnetic 74 | . . 46 28 . . . . . . . . . . . Robot Hit Streak 44 | . 18 23 44 24 34 19 30 . 31 . 12 29 . 4 Robot Miss Streak 2 | . 1 2 1 1 1 1 . . 1 . . 1 . 2 Penetration Max . | . . . . . . . . . . . . . . . Secondary Targets 1 | . . 1 . . . . . . . . . . . . Max Gunslinging Chain 1 | . . 1 . . . . . . . . . . . . Shots Hit Robots 506 | . 45 116 121 22 80 29 18 . 21 . 11 38 . 5 Core Hits 249 | . 18 47 64 7 63 16 2 . 8 . 7 15 . 2 Critical Hits 31 | . . . 12 4 6 5 1 . 1 . . 1 . 1 Critical Kills 12 | . . . 6 1 1 4 . . . . . . . . Critical Parts Destroyed 17 | . . . 6 3 3 1 1 . 1 . . 1 . 1 Melee Attacks 26 | . . . . . 26 . . . . . . . . . Impact 26 | . . . . . 26 . . . . . . . . . Slashing . | . . . . . . . . . . . . . . . Piercing . | . . . . . . . . . . . . . . . Sneak Attacks . | . . . . . . . . . . . . . . . Combat Hostiles . | . . . . . . . . . . . . . . . Follow-up Attacks . | . . . . . . . . . . . . . . . Damage Inflicted 13463 | . 565 1685 3402 430 3977 638 368 . 680 . 346 1148 . 224 Guns 3000 | . 565 1377 1020 . . . 38 . . . . . . . Cannons 7097 | . . 308 1199 430 1801 638 330 . 680 . 339 1148 . 224 Explosions 3359 | . . . 1183 . 2176 . . . . . . . . . Melee . | . . . . . . . . . . . . . . . Ramming 7 | . . . . . . . . . . . 7 . . . Kinetic 3574 | . 565 717 470 . 1028 . . . 680 . 114 . . . Thermal 5759 | . . 308 1645 430 773 638 368 . . . 225 1148 . 224 Explosive 3053 | . . . 877 . 2176 . . . . . . . . . Electromagnetic 1070 | . . 660 410 . . . . . . . . . . . Impact . | . . . . . . . . . . . . . . . Slashing . | . . . . . . . . . . . . . . . Piercing . | . . . . . . . . . . . . . . . Highest Corruption 17 | . . . . 3 3 4 16 17 . 8 8 8 8 8 Average Corruption 6 | . . . . 1 3 4 8 16 . 8 8 8 8 8 Corruption Purged . | . . . . . . . . . . . . . . . Effects 89 | . . . . 1 19 3 8 6 . 1 13 29 8 1 Message Errors 17 | . . . . . 3 2 2 2 . 1 3 3 1 . Matter Fused 22 | . . . . 1 4 1 2 . . . 3 8 2 1 Heat Flow Errors 3 | . . . . . 1 . . . . . . 2 . . Energy Discharges 11 | . . . . . 5 . . 1 . . 1 3 1 . Data Loss (minor) 11 | . . . . . 3 . . . . . 4 2 2 . Data Loss (major) 4 | . . . . . . . . . . . 1 1 2 . Misfires 1 | . . . . . . . 1 . . . . . . . Misdirections 5 | . . . . . . . 2 3 . . . . . . Targeting Errors 14 | . . . . . 3 . 1 . . . 1 9 . . Weapon Failures 1 | . . . . . . . . . . . . 1 . . Overload Shots . | . . . . . . . . . . . . . . . Overflow Damage 194 | . . . 58 22 81 . . . 18 . . 15 . . Projectiles 56 | . . . . 22 1 . . . 18 . . 15 . . Explosions 138 | . . . 58 . 80 . . . . . . . . . Melee . | . . . . . . . . . . . . . . . Knockbacks 11 | . . . . . 5 . . . 6 . . . . . Impact . | . . . . . . . . . . . . . . . Kinetic 11 | . . . . . 5 . . . 6 . . . . . Secondary . | . . . . . . . . . . . . . . . Self-Inflicted Damage 244 | . . . 161 . 80 . . . . . 3 . . . Shots 9 | . . . 6 . 3 . . . . . . . . . Rammed 1 | . . . . . . . . . . . 1 . . . Targets Rammed 1 | . . . . . . . . . . . 1 . . . Kicked . | . . . . . . . . . . . . . . . Crushed . | . . . . . . . . . . . . . . . Highest Temperature 265 | . 2 16 58 . 265 . . . 30 . 26 180 . . Average Temperature 25 | . 2 8 14 . 145 . . . 15 . 11 90 . . Received Heat Transfer 1949 | . 75 360 612 72 435 129 . 45 57 . 12 18 . 134 Siege Activations . | . . . . . . . . . . . . . . . Robots Corrupted . | . . . . . . . . . . . . . . . Combat Hostiles . | . . . . . . . . . . . . . . . Parts Fried 4 | . . 3 1 . . . . . . . . . . . Impact Corruptions . | . . . . . . . . . . . . . . . Robots Melted 1 | . . . . 1 . . . . . . . . . . Combat Hostiles 1 | . . . . 1 . . . . . . . . . . Parts Melted 12 | . . . 2 . . 3 . . . . 1 6 . . Heat Transferred 9681 | . . 555 2842 777 1369 1147 666 . . . 350 1750 . 225 Parts Sabotaged 3 | . . . . . . . . . . . . . . 3 Parts Stolen . | . . . . . . . . . . . . . . . Parts Stripped . | . . . . . . . . . . . . . . . Power Chain Reactions 4 | . . . 4 . . . . . . . . . . . Missiles Intercepted . | . . . . . . . . . . . . . . . Alert | -11 -10 -9 -8 -7 -7 -6 -6 -6 -5 -5 -5 -5 -5 -5 ------- Run | Scr Mat Mat Mat Fac Sto Fac Was Fac Fac Was Fac Upp Upp War Peak Influence 651 | . 141 428 430 160 651 464 76 18 211 48 187 . . . Initial 253 | . . 7 37 87 36 253 76 18 . 3 29 . . . Average 174 | . 30 142 203 95 494 367 45 12 93 17 103 . . . Maximum Alert Level 2 | . . 2 2 . 2 2 . . 1 . . . . . Low Security (%) 71 | 100 100 73 65 100 10 . 100 100 93 100 100 . . . Level 1 14 | . . 25 29 . 2 63 . . 6 . . . . . Level 2 14 | . . . 4 . 87 36 . . . . . . . . Level 3 . | . . . . . . . . . . . . . . . Level 4 . | . . . . . . . . . . . . . . . Level 5 . | . . . . . . . . . . . . . . . High Security . | . . . . . . . . . . . . . . . Max Security . | . . . . . . . . . . . . . . . Squads Dispatched 22 | . . . 8 2 8 1 . . 2 . 1 . . . Investigation 1 | . . . 1 . . . . . . . . . . . Extermination 3 | . . . . . 2 . . . 1 . . . . . Reinforcement 10 | . . . 4 1 2 1 . . 1 . 1 . . . Assault 2 | . . . . . 2 . . . . . . . . . Garrison 6 | . . . 3 1 2 . . . . . . . . . Intercept . | . . . . . . . . . . . . . . . Construction Impeded 2 | . . . 1 . 1 . . . . . . . . . Haulers Reinforced . | . . . . . . . . . . . . . . . Stealth | -11 -10 -9 -8 -7 -7 -6 -6 -6 -5 -5 -5 -5 -5 -5 --------- Run | Scr Mat Mat Mat Fac Sto Fac Was Fac Fac Was Fac Upp Upp War Distress Signals 12 | . . 3 2 . 3 . . . 2 . 1 . . 1 Communications Jammed . | . . . . . . . . . . . . . . . Distress Signals . | . . . . . . . . . . . . . . . Times Spotted 232 | . 16 36 48 11 39 8 4 3 14 5 4 11 . 33 Peak Tracking Total 23 | . 3 4 10 7 11 4 4 3 8 5 2 5 . 23 Tactical Retreats 19 | . . 3 4 3 3 1 . . 3 . . . . 2 Traps | -11 -10 -9 -8 -7 -7 -6 -6 -6 -5 -5 -5 -5 -5 -5 ------- Run | Scr Mat Mat Mat Fac Sto Fac Was Fac Fac Was Fac Upp Upp War Traps Triggered 15 | . 1 . . 7 4 1 . 1 1 . . . . . Indirectly . | . . . . . . . . . . . . . . . Trap Hack Attempts . | . . . . . . . . . . . . . . . Triggered . | . . . . . . . . . . . . . . . Disarmed . | . . . . . . . . . . . . . . . Reprogrammed . | . . . . . . . . . . . . . . . Reused . | . . . . . . . . . . . . . . . Traps Extracted . | . . . . . . . . . . . . . . . Installed . | . . . . . . . . . . . . . . . Triggered 10 | . . . . . . . . . . . . . . 10 Machines | -11 -10 -9 -8 -7 -7 -6 -6 -6 -5 -5 -5 -5 -5 -5 ---------- Run | Scr Mat Mat Mat Fac Sto Fac Was Fac Fac Was Fac Upp Upp War Machines Disabled 6 | . . . 3 . 2 . . . 1 . . . . . Max in Single Turn 1 | . . . 1 . 1 . . . 1 . . . . . Garrison Access 1 | . . . . . . . . . 1 . . . . . Machines Sabotaged . | . . . . . . . . . . . . . . . Garrisons Compromised . | . . . . . . . . . . . . . . . Overloaded Fab Kills . | . . . . . . . . . . . . . . . Fab Network Shutdowns . | . . . . . . . . . . . . . . . Hacking | -11 -10 -9 -8 -7 -7 -6 -6 -6 -5 -5 -5 -5 -5 -5 --------- Run | Scr Mat Mat Mat Fac Sto Fac Was Fac Fac Was Fac Upp Upp War Machines Accessed 52 | . 8 10 5 5 5 2 . 1 4 . 2 3 . 7 Terminals 35 | . 8 9 4 4 5 2 . . 2 . 1 . . . Fabricators 1 | . . . . . . . . 1 . . . . . . Repair Stations 4 | . . . 1 1 . . . . 1 . 1 . . . Recycling Units . | . . . . . . . . . . . . . . . Scanalyzers 1 | . . 1 . . . . . . . . . . . . Garrison Access 1 | . . . . . . . . . 1 . . . . . Total Hacks 144 | . 27 40 16 10 10 5 . 1 11 . 4 10 . 10 Successful 94 | . 16 22 10 6 5 1 . 1 9 . 4 10 . 10 Failed 50 | . 11 18 6 4 5 4 . . 2 . . . . . Catastrophic 5 | . . 1 1 1 1 . . . 1 . . . . . Database Lockouts . | . . . . . . . . . . . . . . . Manual 70 | . 17 18 13 6 4 5 . . 6 . 1 . . . Terminals 111 | . 27 38 13 8 10 5 . . 8 . 2 . . . Fabricators 1 | . . . . . . . . 1 . . . . . . Repair Stations 9 | . . . 3 2 . . . . 2 . 2 . . . Recycling Units . | . . . . . . . . . . . . . . . Scanalyzers 2 | . . 2 . . . . . . . . . . . . Garrison Access 1 | . . . . . . . . . 1 . . . . . Terminal Hacks 67 | . 13 17 5 1 4 1 . . 5 . 1 10 . 10 Record 19 | . 2 4 . . . . . . . . . 8 . 5 Prototype ID Bank 5 | . . 1 . . . . . . . . . . . 4 Open Door 6 | . . . . . 3 . . . . . . 2 . 1 Branch Access Points 6 | . 1 2 1 . . . . . 1 . 1 . . . Emergency Access Points 1 | . 1 . . . . . . . . . . . . . Terminal Index 6 | . 1 1 1 1 . 1 . . 1 . . . . . Garrison Index 1 | . . . . . . . . . 1 . . . . . Alert Level 1 | . . 1 . . . . . . . . . . . . Unreport Threat 10 | . 2 2 3 . 1 . . . 2 . . . . . Locate Traps 2 | . 2 . . . . . . . . . . . . . Dispatch Records 2 | . 1 1 . . . . . . . . . . . . Maintenance Status 1 | . . 1 . . . . . . . . . . . . Security Status 1 | . . 1 . . . . . . . . . . . . Surveillance Status 1 | . . 1 . . . . . . . . . . . . Patrol Status 1 | . 1 . . . . . . . . . . . . . Hauler Manifests 3 | . 1 2 . . . . . . . . . . . . Registered Components 1 | . 1 . . . . . . . . . . . . . Fabricator Hacks 1 | . . . . . . . . 1 . . . . . . Network Status 1 | . . . . . . . . 1 . . . . . . Repair Station Hacks 8 | . . . 2 2 . . . . 2 . 2 . . . Scan Component 4 | . . . 1 1 . . . . 1 . 1 . . . Repair 4 | . . . 1 1 . . . . 1 . 1 . . . Recycling Unit Hacks . | . . . . . . . . . . . . . . . Scanalyzer 2 | . . 2 . . . . . . . . . . . . Insert Component 1 | . . 1 . . . . . . . . . . . . Analyze 1 | . . 1 . . . . . . . . . . . . Garrison Access Hacks 1 | . . . . . . . . . 1 . . . . . Seal Access 1 | . . . . . . . . . 1 . . . . . Unauthorized Hacks 15 | . 3 3 3 3 1 . . . 1 . 1 . . . Terminals 15 | . 3 3 3 3 1 . . . 1 . 1 . . . Assimilate 1 | . . . . 1 . . . . . . . . . . Botnet 14 | . 3 3 3 2 1 . . . 1 . 1 . . . Fabricators . | . . . . . . . . . . . . . . . Repair Stations . | . . . . . . . . . . . . . . . Recycling Units . | . . . . . . . . . . . . . . . Scanalyzers . | . . . . . . . . . . . . . . . Garrison Access . | . . . . . . . . . . . . . . . Data Cores Recovered . | . . . . . . . . . . . . . . . Used . | . . . . . . . . . . . . . . . Hacking Detections 33 | . 7 9 5 4 3 2 . . 1 . 2 . . . Full Trace Events 1 | . . . 1 . . . . . . . . . . . Feedback Events . | . . . . . . . . . . . . . . . Feedback Blocked . | . . . . . . . . . . . . . . . Robot Schematics Acquired . | . . . . . . . . . . . . . . . Robots Built . | . . . . . . . . . . . . . . . Matter . | . . . . . . . . . . . . . . . Time . | . . . . . . . . . . . . . . . Total Robot Build Rating . | . . . . . . . . . . . . . . . Part Schematics Acquired . | . . . . . . . . . . . . . . . Parts Built . | . . . . . . . . . . . . . . . Matter . | . . . . . . . . . . . . . . . Time . | . . . . . . . . . . . . . . . Total Part Build Rating . | . . . . . . . . . . . . . . . Parts Repaired 4 | . . . 1 1 . . . . 1 . 1 . . . Time 114 | . . . 26 32 . . . . 38 . 18 . . . Parts Recycled . | . . . . . . . . . . . . . . . Recycled Matter . | . . . . . . . . . . . . . . . Retrieved Matter . | . . . . . . . . . . . . . . . Retrieved Components . | . . . . . . . . . . . . . . . Parts Scanalyzed 1 | . . 1 . . . . . . . . . . . . Part Schematics Acquired . | . . . . . . . . . . . . . . . Parts Damaged . | . . . . . . . . . . . . . . . Bothacking | -11 -10 -9 -8 -7 -7 -6 -6 -6 -5 -5 -5 -5 -5 -5 ------------ Run | Scr Mat Mat Mat Fac Sto Fac Was Fac Fac Was Fac Upp Upp War Used RIF Installer . | . . . . . . . . . . . . . . . Robots Hacked . | . . . . . . . . . . . . . . . Non-combat . | . . . . . . . . . . . . . . . Combat . | . . . . . . . . . . . . . . . Robot Hacks Applied . | . . . . . . . . . . . . . . . Relay Couplers Released . | . . . . . . . . . . . . . . . Robots Rewired 5 | . . . . . . . . . . . . . . 5 Allies Hacked . | . . . . . . . . . . . . . . . Hacks Repelled . | . . . . . . . . . . . . . . . Allies | -11 -10 -9 -8 -7 -7 -6 -6 -6 -5 -5 -5 -5 -5 -5 -------- Run | Scr Mat Mat Mat Fac Sto Fac Was Fac Fac Was Fac Upp Upp War Total Allies 9 | . . . . . 2 . . . . . . 2 . 5 Largest Group 5 | . . . . . 2 . . . . . . 2 . 5 Highest-Rated Group 270 | . . . . . 62 . . . . . . 62 . 270 Highest-Rated Ally 60 | . . . . . 31 . . . . . . 31 . 60 Total Orders . | . . . . . . . . . . . . . . . Ally Attacks 33 | . . . . . 9 . . . . . . . . 24 Total Damage 1222 | . . . . . 125 . . . . . . . . 1097 Kills 6 | . . . . . . . . . . . . . . 6 Allies Corrupted . | . . . . . . . . . . . . . . . Allies Melted . | . . . . . . . . . . . . . . . Intel | -11 -10 -9 -8 -7 -7 -6 -6 -6 -5 -5 -5 -5 -5 -5 ------- Run | Scr Mat Mat Mat Fac Sto Fac Was Fac Fac Was Fac Upp Upp War Robot Analysis Total . | . . . . . . . . . . . . . . . Derelict Logs Recovered 2 | . . . . . . . . . . . . 1 1 . Drone Launches . | . . . . . . . . . . . . . . . Drone Recoveries . | . . . . . . . . . . . . . . . Exploration | -11 -10 -9 -8 -7 -7 -6 -6 -6 -5 -5 -5 -5 -5 -5 ------------- Run | Scr Mat Mat Mat Fac Sto Fac Was Fac Fac Was Fac Upp Upp War Turns Passed 7604 | 57 1187 1294 935 516 763 441 133 50 455 37 392 510 224 610 Spaces Moved 5571 | 31 675 797 504 357 322 197 137 83 620 65 503 503 202 575 Core 35 | 6 . . . . . . 20 8 . . . . . 1 Treads 718 | 25 609 . . . 4 60 20 . . . . . . . Legs 271 | . . . . . 134 137 . . . . . . . . Wheels 1908 | . 66 797 504 357 184 . . . . . . . . . Hover 2468 | . . . . . . . . 1 620 65 503 503 202 574 Flight 171 | . . . . . . . 97 74 . . . . . . Fastest Speed 40 | 50 100 100 100 100 100 150 40 40 56 56 56 46 111 46 Average Speed 99 | 141 154 105 109 105 130 164 61 41 57 56 56 75 111 95 Slowest Speed 500 | 160 160 110 110 110 210 180 180 60 60 56 56 111 111 500 Overloaded Moves . | . . . . . . . . . . . . . . . Propulsion Burnouts . | . . . . . . . . . . . . . . . Robots Hopped . | . . . . . . . . . . . . . . . Cave-ins Triggered . | . . . . . . . . . . . . . . . Exploration Rate (%) 45 | 3 93 58 53 8 60 5 83 2 23 76 18 72 57 76 Regions Visited 14 Branch Regions 4 Pre-discovered Areas 2 | . . . . . . . . . . . . 1 1 . Known Exits Taken 2 | . . 1 . . . . . . . . 1 . . . Unknown Exits Taken 8 | 1 1 . 1 1 1 . . 1 . . . 1 1 . Scrap Searched 4 | . . . . . . . . . . . . 3 1 . Spaces Dug 37 | . . . . . 27 . . . . . 10 . . . Terrain Destroyed 189 | . . . 45 . 120 . . . 5 . 10 9 . . Melee 15 | . . . . . 15 . . . . . . . . . Projectile 28 | . . . . . 4 . . . 5 . 10 9 . . AOE 146 | . . . 45 . 101 . . . . . . . . . Terrain Rammed . | . . . . . . . . . . . . . . . Walls Destroyed . | . . . . . . . . . . . . . . . Machines Disabled . | . . . . . . . . . . . . . . . Actions | -11 -10 -9 -8 -7 -7 -6 -6 -6 -5 -5 -5 -5 -5 -5 --------- Run | Scr Mat Mat Mat Fac Sto Fac Was Fac Fac Was Fac Upp Upp War Total 6981 | 42 766 1105 753 477 532 279 166 97 691 65 591 586 201 630 Wait 713 | . 38 196 129 91 63 34 12 13 34 1 45 50 . 7 Move 5559 | 30 674 796 503 356 321 197 136 82 620 64 502 502 201 575 Hop . | . . . . . . . . . . . . . . . Pick Up 79 | 5 10 10 12 5 14 8 1 . 7 . 6 1 . . Fast Attach 70 | 6 6 6 5 4 14 1 3 2 9 . 6 2 . 6 Attach 28 | . . 5 6 2 3 5 2 . 4 . . 1 . . Detach 11 | . . 3 1 . 2 . . . . . 1 2 . 2 Swap 46 | . 2 4 10 . 17 7 . . . . 4 1 . 1 Drop 88 | 1 8 10 13 6 19 4 2 . 3 . 12 2 . 8 Fire 335 | . 28 75 74 13 53 23 10 . 14 . 14 25 . 6 Melee 26 | . . . . . 26 . . . . . . . . . Ram 1 | . . . . . . . . . . . 1 . . . Kick . | . . . . . . . . . . . . . . . Crush . | . . . . . . . . . . . . . . . Escape Stasis . | . . . . . . . . . . . . . . . Rewire 25 | . . . . . . . . . . . . . . 25 Trap . | . . . . . . . . . . . . . . . Miscellaneous . | . . . . . . . . . . . . . . . Route ------- -11/Scrapyard -10/Materials (discovered 4 exits: *Mat x3 / *Min) -9/Materials (discovered 2 exits: *Mat / *Min) -8/Materials (discovered 2 exits: *Fac x2) -7/Factory (discovered 2 exits: *Fac / *Sto) -7/Storage -6/Factory -6/Waste -6/Factory -5/Factory (discovered 4 exits: Upp x2 / Ext x2) -5/Waste -5/Factory (discovered 4 exits: *Upp x2 / Ext x2) -5/Upper Caves -5/Upper Caves -5/Warlord History --------- Turn | Location | Event 26 | -11/Scrapyard | Discovered new exit (range 16) 58 | -11/Scrapyard | Entered Materials 233 | -10/Materials | Discovered new exit (range 12) 306 | -10/Materials | Build established: Mutant 510 | -10/Materials | Discovered new exit (range 13) 852 | -10/Materials | Discovered new exit (range 9) 1025 | -10/Materials | Discovered new exit (range 14) 1052 | -10/Materials | Identified exit to Mines 1245 | -10/Materials | Entered another Materials area 1245 | -9/Materials | Evolved 2 slots: Utility x2 2045 | -9/Materials | Identified exit to Mines 2523 | -9/Materials | Discovered new exit (range 15) 2538 | -9/Materials | Identified exit to Materials 2539 | -9/Materials | Entered another Materials area 2539 | -8/Materials | Evolved 2 slots: Utility x2 2672 | -8/Materials | Garrison activated, responded to threat 2871 | -8/Materials | Destroyed 9 combat bots 2940 | -8/Materials | Discovered new exit (range 13) 3075 | -8/Materials | Repaired Lgt. Armor Plating 3470 | -8/Materials | Discovered new exit (range 5) 3474 | -8/Materials | Entered Factory 3474 | -7/Factory | Evolved 2 slots: Propulsion x1, Utility x1 3788 | -7/Factory | Discovered new exit (range 13) 3796 | -7/Factory | Repaired Arm. Wheel 3872 | -7/Factory | Discovered new exit (range 15) 3983 | -7/Factory | Garrison activated, responded to threat 3990 | -7/Factory | Entered Storage 3997 | -7/Storage | Met a pair of Derelict thieves 4110 | -7/Storage | Destroyed 14 combat bots 4569 | -7/Storage | Garrison activated, responded to threat 4710 | -7/Storage | Discovered new exit (range 14) 4753 | -7/Storage | Entered Factory 4753 | -6/Factory | Evolved 2 slots: Power x1, Utility x1 5194 | -6/Factory | Sucked down chute 5194 | -6/Factory | Entered Waste 5209 | -6/Waste | EMP discharged 5246 | -6/Waste | Crushed by Compactor (1 part destroyed, 1 dropped) 5247 | -6/Waste | Spotted C-40 Crusher 5256 | -6/Waste | Crushed by Compactor (1 part destroyed, 2 dropped) 5259 | -6/Waste | Crushed by Compactor (1 part destroyed, 2 dropped) 5262 | -6/Waste | Crushed by Compactor (1 part destroyed, 2 dropped) 5265 | -6/Waste | Crushed by Compactor (1 part destroyed, 2 dropped) 5296 | -6/Waste | Lost 6 parts (1n3u2w) 5309 | -6/Waste | EMP discharged 5309 | -6/Waste | System corruption reached 10% 5315 | -6/Waste | Spotted C-40 Crusher 5319 | -6/Waste | Spotted C-40 Crusher 5321 | -6/Waste | Discovered new exit (range 14) 5321 | -6/Waste | Spotted C-40 Crusher 5327 | -6/Waste | Entered Factory 5349 | -6/Factory | Discovered new exit (range 9) 5377 | -6/Factory | Entered another Factory area 5377 | -5/Factory | Evolved 2 slots: Utility x2 5632 | -5/Factory | Repaired Imp. Heat Sink 5787 | -5/Factory | Identified exit to Upper Caves 5787 | -5/Factory | Identified exit to Extension 5819 | -5/Factory | Spotted B-75 Beast 5832 | -5/Factory | Manually triggered Chute Trap 5832 | -5/Factory | Sucked down chute 5832 | -5/Factory | Entered Waste 5837 | -5/Waste | Spotted C-40 Crusher 5843 | -5/Waste | Spotted C-40 Crusher 5847 | -5/Waste | EMP discharged 5850 | -5/Waste | Spotted C-40 Crusher 5858 | -5/Waste | Spotted C-40 Crusher 5858 | -5/Waste | Spotted C-40 Crusher 5861 | -5/Waste | Spotted C-40 Crusher 5864 | -5/Waste | Discovered new exit (range 10) 5869 | -5/Waste | Entered Factory 6115 | -5/Factory | Build established: Hacker-Mutant 6135 | -5/Factory | Spotted B-75 Beast 6166 | -5/Factory | Repaired Adv. Shield Generator 6261 | -5/Factory | Entered Upper Caves 6312 | -5/Upper Caves | Attracted the attention of an 0b10 checkpoint 6435 | -5/Upper Caves | Attacked by a faux Warlord 6548 | -5/Upper Caves | Learned Factory trap positions 6621 | -5/Upper Caves | Discovered new exit (range 14) 6705 | -5/Upper Caves | A Commander dispatched an escort 6736 | -5/Upper Caves | Learned Research trap positions 6736 | -5/Upper Caves | Learned Factory security intel 6736 | -5/Upper Caves | Learned Extension garrison access intel 6771 | -5/Upper Caves | Entered another Upper Caves area 6771 | -5/Upper Caves | Accompanied by 2 allies 6772 | -5/Upper Caves | Commander's escort returned to base 6772 | -5/Upper Caves | Commander's escort returned to base 6911 | -5/Upper Caves | Learned location of Armory (-4) 6979 | -5/Upper Caves | Discovered new exit (range 17) 6995 | -5/Upper Caves | Entered Warlord 7033 | -5/Warlord | System corruption cleaned by Quarantine Array 7162 | -5/Warlord | Visited the Vortex Lab 7174 | -5/Warlord | Found Prototype Energy Cannon 7174 | -5/Warlord | Identified Vortex Driver 7178 | -5/Warlord | Found Prototype Energy Cannon 7178 | -5/Warlord | Identified Vortex Cannon 7179 | -5/Warlord | Warlord's base attacked by MAIN.C 7182 | -5/Warlord | Found Prototype Launcher 7182 | -5/Warlord | Identified Vortex Catalyst Activator 7331 | -5/Warlord | Met Warlord 7417 | -5/Warlord | Build established: Commander-Mutant 7529 | -5/Warlord | Warlord forces counterattacked 7536 | -5/Warlord | Spotted Executioner 7536 | -5/Warlord | Spotted Striker 7590 | -5/Warlord | Spotted Executioner 7605 | -5/Warlord | Self-destructed Last Messages --------------- 07579_ 79-RDQ(g) destroyed. 07579_ FC-752(M) destroyed. 07579_ VS-9VS(l) knocked back. 07580_ VS-9VS(l) destroyed. 07581_ Imp. Launcher Guidance Computer fries itself beyond repair. 07581_ The unstable cave ceiling collapses. 07584_ Acquired 17 matter. 07590_ Penetrated by Slug. 07590_ Slug penetrates Door. 07594_ Mic. Fission Core blown off. 07594_ Adv. Cooling System blown off. 07594_ Adv. Shield Generator blown off. 07594_ E-15 Imp destroyed. 07595_ Acquired Hrd. Heavy Armor Plating. 07597_ Slug penetrates G-50 Soldier. 07598_ Cesium-ion Thruster fries itself beyond repair. 07598_ Gravmag Array destroyed. 07600_ E-15 Imp destroyed. 07605_ Cesium-ion Thruster fries itself beyond repair. 07605_ E-15 Imp destroyed. Map ----- +----------------------------------------------------+ | ??????????????????????????????????????? | | ??????????????? ?????????????????????? | | ???????????????? ????????????????????? | | ????????????????? ???????????????????? | | ?????????????????? ???????????????????? | | ??????????????????? ??????????????????? | | ???????????????????# ?????#???????????? | | ???????????????????? ??### ??????????? | | ????????????????????? ?? ??????##??? | | ?????????????????????? ### ?????? ##? | | ???""#????????????????? ?????? ?? | | ??#""#?????????????????# #????? ?? | | ??#""#?????????????????# ????? #?? | | ??#""#??????????????????# ##??? #?? | | ###""#???????????????????# #??? ##? | | # #""#####????????????????# ##?? #? | | "" "############??????# ### #?? | | "" """""""""%" #???????# # ###? | | "" """""""""*%#?####?## " | | = % !###!!### g ??? | | % % % %%%+%%%]%%E ## #??? | | % % !%%"%!!%!/gg"### #??? | | *%#### ggg##??# #??? | | "" """"""""""" #??##!/ #???# ##?? | | "" """"""""""""#???#=%=#?### #?? | | "" "############???#@!#### # #?? | | ""#####??????????????# #?# #?? | | #""#?????????????????? ### #?? | | ##""#????????????????? ### ##?? | | ###""#????????????????# ##?# #??? | | ??#""#???????????????? ???## ##??? | | ??#""#???????????????# ????## #???? | | ?????????????????????# #?????# #???? | | ?????????????????????# ??????## ##??? | | ?????????????????????# ??????## #??? | | ????????????????????? ?????## #??? | | ????????????????????? ?????# #??? | | ???????????????????? ##?????# #??? | | ???????????????????? #???????# #??? | | ???????????????????? ????????# #??? | | ??????????????????? ????????## ##??? | | ???????????????????#?????????? #???? | | ?????????????????????????????? ##???? | | ?????????????????????????????#####????? | | ??????????????????????????????????????? | | ??????????????????????????????????????? | | ??????????????????????????????????????? | | ??????????????????????????????????????? | | ??????????????????????????????????????? | | ??????????????????????????????????????? | +----------------------------------------------------+ Best States ------------- Heat Dissipation 124 Energy Generation 31 Energy Capacity 520 Matter Stores 300 Matter Capacity 300 Sight Range 22 Robot Scan Range 16 Terrain Scan Range 16 Terrain Scan Density 10 Armor Coverage 600 Resistance: KI 45 Resistance: TH 20 Resistance: EX 20 Resistance: EM 20 Resistance: I 20 Resistance: S 20 Resistance: P 20 Evasion (%) 67 Targeting Accuracy 14 Recoil Reduction 3 Particle Charging 15 Offensive Hacking 38 Item Schematics ----------------- None Robot Schematics ------------------ None Fabricated ------------ Nothing Alien Tech Used ----------------- None Achievements -------------- A New Friend Below Universal Adapter Wheee! Challenges ------------ None Game ------ Seed ThermalScatterPit Manual? 0 Play Time 02:39:16 Cumulative 39.5 hours Start 2021.06.12 @ 04:21:25 End 2021.06.12 @ 15:04:53 Sessions 3 Manual Loads 0 Difficulty Adventurer Special Mode None Game No. 9 Rogue 0 Adventurer 4 Explorer 5 Win Type - Total 2 Types 2/0/0/0/0/0/0/0/0 Lore% 29 Gallery% 34 Achievement% 32 Wizard Run 0 Options --------- ASCII 0 Keyboard 1 Movement Numpad Keybinds 0 Fullscreen 1 Font 18/X11 Map View 76x50 Tactical HUD 1 Map Filters NONE Filters NONE Steam 1 RUN: 94237210-9a06-4efb-85a6-78a5d0a9a0db